fUSD/lending_fUSD_20240925
["ID","MTS","AMOUNT","RATE_DAILY","PERIOD"]
[339163190,1727271066843,-500.0,0.00012899,2]
[339163191,1727271066852,-500.0,0.00012899,2]
[339163192,1727271066861,-846.44,0.00012899,2]
[339163193,1727271066870,-224.25419742,0.00012899,2]
[339163194,1727271066879,-500.0,0.00012899,2]
[339163195,1727271066888,-846.44,0.00012899,2]
[339163196,1727271066898,-500.0,0.00012899,2]
[339163197,1727271066907,-846.44,0.00012899,2]
[339163198,1727271066916,-500.0,0.00012899,2]
[339163199,1727271066925,-846.44,0.00012899,2]
[339163200,1727271066934,-500.0,0.00012899,2]
[339163201,1727271066943,-500.0,0.00012899,2]
[339163202,1727271066952,-846.44,0.00012899,2]
[339163203,1727271066961,-500.0,0.00012899,2]
[339163204,1727271066970,-500.0,0.00012899,2]
[339163205,1727271066980,-846.44,0.00012899,2]
[339163206,1727271066989,-500.0,0.00012899,2]
[339163207,1727271066998,-846.44,0.00012899,2]
[339163208,1727271067007,-500.0,0.00012899,2]
[339163209,1727271067016,-846.62200897,0.00012899,2]
[339163210,1727271067025,-500.0,0.00012899,2]
[339163211,1727271067034,-500.0,0.00012899,2]
[339163212,1727271067043,-500.0,0.00012899,2]
[339163213,1727271067052,-500.0,0.00012899,2]
[339163214,1727271067061,-500.0,0.00012899,2]
[339163215,1727271067075,-500.0,0.00012899,2]
[339163216,1727271067084,-500.0,0.00012899,2]
[339163217,1727271067093,-237.95,0.00012899,2]
[339163218,1727271067102,-404.29988866,0.00012899,2]
[339163219,1727271067111,-500.0,0.00012899,2]
[339163220,1727271067120,-500.0,0.00012899,2]
[339163221,1727271067129,-500.0,0.00012899,2]
[339163222,1727271067139,-500.0,0.00012899,2]
[339163223,1727271067151,-500.0,0.00012899,2]
[339163224,1727271067160,-500.0,0.00012899,2]
[339163225,1727271067169,-500.0,0.00012899,2]
[339163226,1727271067178,-500.0,0.00012899,2]
[339163227,1727271067187,-500.0,0.00012899,2]
[339163228,1727271067197,-500.0,0.00012899,2]
[339163229,1727271067206,-424.21171861,0.00012899,2]
[339163230,1727271067215,-737.839781,0.00012899,2]
[339163231,1727271067227,-4500.0,0.00012899,2]
[339163232,1727271067236,-737.839781,0.00012899,2]
[339163233,1727271067245,-737.839781,0.00012899,2]
[339163234,1727271067254,-4500.0,0.00012899,2]
[339163235,1727271067262,-737.839781,0.00012899,2]
[339163236,1727271067272,-4500.0,0.00012899,2]
[339163237,1727271067281,-1659.84,0.00012899,2]
[339163238,1727271067290,-1659.84,0.00012899,2]
[339163239,1727271067299,-1659.84,0.00012899,2]
[339163240,1727271067308,-1659.84,0.00012899,2]
[339163241,1727271067322,-1659.84,0.00012899,2]
[339163242,1727271067331,-500.0,0.00012899,2]
[339163243,1727271067340,-500.0,0.00012899,2]
[339163244,1727271067350,-737.839781,0.00012899,2]
[339163245,1727271067359,-1660.06073164,0.00012899,2]
[339163246,1727271067369,-500.0,0.00012899,2]
[339163247,1727271067379,-737.839781,0.00012899,2]
[339163248,1727271067389,-4500.0,0.00012899,2]
[339163249,1727271067398,-500.0,0.00012899,2]
[339163250,1727271067408,-737.839781,0.00012899,2]
[339163251,1727271067417,-535.72,0.00012899,2]
[339163252,1727271067427,-4500.0,0.00012899,2]
[339163253,1727271067436,-737.839781,0.00012899,2]
[339163254,1727271067446,-500.0,0.00012899,2]
[339163255,1727271067455,-4500.0,0.00012899,2]
[339163256,1727271067465,-500.0,0.00012899,2]
[339163257,1727271067474,-500.0,0.00012899,2]
[339163258,1727271067483,-500.0,0.00012899,2]
[339163259,1727271067492,-591.06753022,0.00012899,2]
[339163260,1727271067503,-500.0,0.00012899,2]
[339163261,1727271067512,-500.0,0.00012899,2]
[339163262,1727271067522,-151.0,0.00012899,2]
[339163263,1727271067532,-151.0,0.00012899,2]
[339163264,1727271067542,-500.0,0.00012899,2]
[339163265,1727271067551,-1205.8,0.00012899,2]
[339163266,1727271067561,-500.0,0.00012899,2]
[339163267,1727271067573,-1205.8,0.00012899,2]
[339163268,1727271067582,-151.0,0.00012899,2]
[339163269,1727271067590,-1205.8,0.00012899,2]
[339163270,1727271067599,-500.0,0.00012899,2]
[339163271,1727271067608,-151.0,0.00012899,2]
[339163272,1727271067619,-1205.8,0.00012899,2]
[339163273,1727271067629,-500.0,0.00012899,2]
[339163274,1727271067638,-1205.8,0.00012899,2]
[339163275,1727271067648,-500.0,0.00012899,2]
[339163276,1727271067658,-1205.8,0.00012899,2]
[339163277,1727271067667,-500.0,0.00012899,2]
[339163278,1727271067676,-1205.8,0.00012899,2]
[339163279,1727271067685,-500.0,0.00012899,2]
[339163280,1727271067695,-1205.8,0.00012899,2]
[339163281,1727271067705,-1205.8,0.00012899,2]
[339163282,1727271067715,-1205.8,0.00012899,2]
[339163283,1727271067724,-1205.8,0.00012899,2]
[339163284,1727271067734,-1205.8,0.00012899,2]
[339163285,1727271067743,-151.0,0.00012899,2]
[339163286,1727271067752,-1205.8,0.00012899,2]
[339163287,1727271067763,-500.0,0.00012899,2]
[339163288,1727271067774,-151.0,0.00012899,2]
[339163289,1727271067784,-1205.8,0.00012899,2]
[339163290,1727271067794,-500.0,0.00012899,2]
[339163291,1727271067804,-151.0,0.00012899,2]
[339163292,1727271067813,-1205.92880208,0.00012899,2]
[339163293,1727271067826,-1520.94,0.00012899,2]
[339163294,1727271067835,-500.0,0.00012899,2]
[339163295,1727271067845,-151.0,0.00012899,2]
[339163296,1727271067855,-297.66,0.00012899,2]
[339163297,1727271067865,-1520.94,0.00012899,2]
[339163298,1727271067875,-1520.94,0.00012899,2]
[339163299,1727271067885,-3483.19,0.00012899,2]
[339163300,1727271067895,-3483.19,0.00012899,2]
[339163301,1727271067905,-1520.94,0.00012899,2]
[339163302,1727271067915,-1520.94,0.00012899,2]
[339163303,1727271067925,-3483.19,0.00012899,2]
[339163304,1727271067935,-1521.16707582,0.00012899,2]
[339163305,1727271067945,-3483.19,0.00012899,2]
[339163306,1727271067956,-3483.19,0.00012899,2]
[339163307,1727271067967,-500.0,0.00012899,2]
[339163308,1727271067978,-3483.24321153,0.00012899,2]
[339163309,1727271067987,-500.0,0.00012899,2]
[339163310,1727271067998,-500.0,0.00012899,2]
[339163311,1727271068007,-501.1386905,0.00012899,2]
[339163312,1727271068017,-1189.94305798,0.00012899,2]
[339163313,1727271068027,-795.69,0.00012899,2]
[339163314,1727271068038,-795.69,0.00012899,2]
[339163315,1727271068048,-795.69,0.00012899,2]
[339163316,1727271068058,-795.69,0.00012899,2]
[339163317,1727271068068,-795.69,0.00012899,2]
[339163318,1727271068078,-795.89884958,0.00012899,2]
[339163319,1727271068088,-500.0,0.00012899,2]
[339163320,1727271068098,-500.0,0.00012899,2]
[339163321,1727271068107,-500.0,0.00012899,2]
[339163322,1727271068117,-500.0,0.00012899,2]
[339163323,1727271068127,-565.84428925,0.00012899,2]
[339163324,1727271068137,-535.79184344,0.00012899,2]
[339163325,1727271068148,-22873.49,0.00012899,2]
[339163326,1727271068159,-22873.49,0.00012899,2]
[339163327,1727271068169,-22873.49,0.00012899,2]
[339163328,1727271068179,-22873.49,0.00012899,2]
[339163329,1727271068188,-22873.49,0.00012899,2]
[339163330,1727271068198,-22873.62565326,0.00012899,2]
[339163331,1727271068207,-897.73,0.00012899,2]
[339163332,1727271068217,-500.0,0.00012899,2]
[339163333,1727271068227,-897.73,0.00012899,2]
[339163334,1727271068237,-500.0,0.00012899,2]
[339163335,1727271068247,-897.73,0.00012899,2]
[339163336,1727271068256,-500.0,0.00012899,2]
[339163337,1727271068266,-897.73,0.00012899,2]
[339163338,1727271068276,-500.0,0.00012899,2]
[339163339,1727271068285,-897.73,0.00012899,2]
[339163340,1727271068295,-500.0,0.00012899,2]
[339163341,1727271068305,-897.80853414,0.00012899,2]
[339163342,1727271068314,-402.04631114,0.00012899,2]
[339163343,1727271068327,-574.16,0.00012899,2]
[339163344,1727271068337,-574.16,0.00012899,2]
[339163345,1727271068347,-574.16,0.00012899,2]
[339163346,1727271068357,-574.16,0.00012899,2]
[339163347,1727271068367,-574.16,0.00012899,2]
[339163348,1727271068377,-574.16,0.00012899,2]
[339163349,1727271068386,-574.16,0.00012899,2]
[339163350,1727271068396,-574.16,0.00012899,2]
[339163351,1727271068405,-151.0,0.00012899,2]
[339163352,1727271068415,-574.16,0.00012899,2]
[339163353,1727271068425,-574.16,0.00012899,2]
[339163354,1727271068435,-151.0,0.00012899,2]
[339163355,1727271068445,-574.16,0.00012899,2]
[339163356,1727271068455,-574.16,0.00012899,2]
[339163357,1727271068464,-151.0,0.00012899,2]
[339163358,1727271068474,-574.16,0.00012899,2]
[339163359,1727271068484,-574.16,0.00012899,2]
[339163360,1727271068494,-574.37588902,0.00012899,2]
[339163361,1727271068504,-500.0,0.00012899,2]
[339163362,1727271068513,-544.089169,0.00012899,2]
[339163363,1727271068522,-502.06573893,0.00012899,2]
[339163364,1727271068532,-544.089169,0.00012899,2]
[339163365,1727271068543,-544.089169,0.00012899,2]
[339163366,1727271068553,-544.089169,0.00012899,2]
[339163367,1727271068562,-2271.65239073,0.00012899,2]
[339163368,1727271068573,-52090.02,0.00012899,2]
[339163369,1727271068583,-52090.02,0.00012899,2]
[339163370,1727271068592,-52090.02,0.00012899,2]
[339163371,1727271068602,-52090.02,0.00012899,2]
[339163372,1727271068612,-544.089169,0.00012899,2]
[339163373,1727271068622,-52090.02,0.00012899,2]
[339163374,1727271068632,-544.089169,0.00012899,2]
[339163375,1727271068642,-52090.05082787,0.00012899,2]
[339163376,1727271068653,-855.02,0.00012899,2]
[339163377,1727271068663,-855.02,0.00012899,2]
[339163378,1727271068673,-855.02,0.00012899,2]
[339163379,1727271068683,-544.089169,0.00012899,2]
[339163380,1727271068693,-855.02,0.00012899,2]
[339163381,1727271068703,-544.089169,0.00012899,2]
[339163382,1727271068714,-855.02,0.00012899,2]
[339163383,1727271068723,-855.02,0.00012899,2]
[339163384,1727271068734,-855.02,0.00012899,2]
[339163385,1727271068743,-855.02,0.00012899,2]
[339163386,1727271068753,-855.02,0.00012899,2]
[339163387,1727271068763,-855.02,0.00012899,2]
[339163388,1727271068773,-855.02,0.00012899,2]
[339163389,1727271068783,-855.02,0.00012899,2]
[339163390,1727271068793,-855.02,0.00012899,2]
[339163391,1727271068803,-855.02,0.00012899,2]
[339163392,1727271068813,-855.02,0.00012899,2]
[339163393,1727271068825,-855.02,0.00012899,2]
[339163394,1727271068835,-855.02,0.00012899,2]
[339163395,1727271068844,-855.02,0.00012899,2]
[339163396,1727271068853,-855.02,0.00012899,2]
[339163397,1727271068863,-1251.53,0.00012899,2]
[339163398,1727271068873,-855.14309746,0.00012899,2]
[339163399,1727271068884,-1251.53,0.00012899,2]
[339163400,1727271068895,-1251.53,0.00012899,2]
[339163401,1727271068905,-1251.53,0.00012899,2]
[339163402,1727271068915,-1251.53,0.00012899,2]
[339163403,1727271068925,-1251.61,0.00012899,2]
[339163404,1727271068935,-500.0,0.00012899,2]
[339163405,1727271068945,-501.33197366,0.00012899,2]
[339163406,1727271068955,-500.0,0.00012899,2]
[339163407,1727271068964,-500.0,0.00012899,2]
[339163408,1727271068974,-500.0,0.00012899,2]
[339163409,1727271068985,-500.0,0.00012899,2]
[339163410,1727271068995,-469.46403255,0.00012899,2]
[339163411,1727271069005,-500.0,0.00012899,2]
[339163412,1727271069015,-500.0,0.00012899,2]
[339163413,1727271069026,-500.0,0.00012899,2]
[339163414,1727271069038,-500.0,0.00012899,2]
[339163415,1727271069049,-500.0,0.00012899,2]
[339163416,1727271069059,-500.0,0.00012899,2]
[339163417,1727271069071,-500.0,0.00012899,2]
[339163418,1727271069080,-500.0,0.00012899,2]
[339163419,1727271069090,-500.0,0.00012899,2]
[339163420,1727271069099,-152.24989091,0.00012899,2]
[339163421,1727271069110,-209.41252111,0.00012899,2]
[339163422,1727271069120,-395.7214089,0.00012899,2]
[339163423,1727271069129,-2284.77,0.00012899,2]
[339163424,1727271069139,-2284.77,0.00012899,2]
[339163425,1727271069154,-2284.77,0.00012899,2]
[339163426,1727271069166,-2284.77,0.00012899,2]
[339163427,1727271069176,-2284.77,0.00012899,2]
[339163428,1727271069185,-2284.81421828,0.00012899,2]
[339163429,1727271069198,-8589.37,0.00012899,2]
[339163430,1727271069208,-8589.37,0.00012899,2]
[339163431,1727271069219,-8589.37,0.00012899,2]
[339163432,1727271069229,-8589.37,0.00012899,2]
[339163433,1727271069238,-8589.37,0.00012899,2]
[339163434,1727271069248,-8589.37,0.00012899,2]
[339163435,1727271069257,-8589.37,0.00012899,2]
[339163436,1727271069267,-8589.37,0.00012899,2]
[339163437,1727271069276,-8589.37,0.00012899,2]
[339163438,1727271069286,-8589.37,0.00012899,2]
[339163439,1727271069295,-8589.37,0.00012899,2]
[339163440,1727271069304,-8589.37,0.00012899,2]
[339163441,1727271069314,-8589.37,0.00012899,2]
[339163442,1727271069325,-8589.37,0.00012899,2]
[339163443,1727271069335,-8589.50235117,0.00012899,2]
[339163444,1727271069345,-1013.87,0.00012899,2]
[339163445,1727271069359,-1013.87,0.00012899,2]
[339163446,1727271069369,-1013.87,0.00012899,2]
[339163447,1727271069379,-1013.87,0.00012899,2]
[339163448,1727271069389,-1013.87,0.00012899,2]
[339163449,1727271069399,-1013.87,0.00012899,2]
[339163450,1727271069409,-500.0,0.00012899,2]
[339163451,1727271069419,-1013.87,0.00012899,2]
[339163452,1727271069429,-500.0,0.00012899,2]
[339163453,1727271069439,-1013.87,0.00012899,2]
[339163454,1727271069449,-500.0,0.00012899,2]
[339163455,1727271069459,-1013.87,0.00012899,2]
[339163456,1727271069469,-1013.87,0.00012899,2]
[339163457,1727271069479,-1013.87,0.00012899,2]
[339163458,1727271069489,-1013.87,0.00012899,2]
[339163459,1727271069499,-1013.87,0.00012899,2]
[339163460,1727271069510,-1013.87,0.00012899,2]
[339163461,1727271069520,-1014.05600235,0.00012899,2]
[339163462,1727271069530,-500.0,0.00012899,2]
[339163463,1727271069540,-500.0,0.00012899,2]
[339163464,1727271069550,-500.0,0.00012899,2]
[339163465,1727271069561,-500.0,0.00012899,2]
[339163466,1727271069572,-500.0,0.00012899,2]
[339163467,1727271069582,-500.0,0.00012899,2]
[339163468,1727271069592,-500.0,0.00012899,2]
[339163469,1727271069602,-500.0,0.00012899,2]
[339163470,1727271069612,-500.0,0.00012899,2]
[339163471,1727271069622,-500.0,0.00012899,2]
[339163472,1727271069632,-500.0,0.00012899,2]
[339163473,1727271069642,-673.59,0.00012899,2]
[339163474,1727271069652,-185.93693258,0.00012899,2]
[339163475,1727271069662,-673.59,0.00012899,2]
[339163476,1727271069673,-673.59,0.00012899,2]
[339163477,1727271069683,-673.59,0.00012899,2]
[339163478,1727271069693,-673.59,0.00012899,2]
[339163479,1727271069702,-673.59,0.00012899,2]
[339163480,1727271069712,-673.59,0.00012899,2]
[339163481,1727271069722,-673.59,0.00012899,2]
[339163482,1727271069732,-673.59,0.00012899,2]
[339163483,1727271069742,-673.59,0.00012899,2]
[339163484,1727271069752,-673.59,0.00012899,2]
[339163485,1727271069762,-673.59,0.00012899,2]
[339163486,1727271069772,-500.0,0.00012899,2]
[339163487,1727271069782,-673.59,0.00012899,2]
[339163488,1727271069792,-500.0,0.00012899,2]
[339163489,1727271069802,-412.63344432,0.00012899,2]
[339163490,1727271069812,-673.59,0.00012899,2]
[339163491,1727271069823,-673.7533832,0.00012899,2]
[339163492,1727271069833,-500.0,0.00012899,2]
[339163493,1727271069843,-500.0,0.00012899,2]
[339163494,1727271069852,-500.0,0.00012899,2]
[339163495,1727271070024,-637.6886276,0.00012899,2]
[339163496,1727271070035,-500.0,0.00012899,2]
[339163497,1727271070045,-500.0,0.00012899,2]
[339163498,1727271070054,-653.5,0.00012899,2]
[339163499,1727271070063,-500.0,0.00012899,2]
[339163500,1727271070081,-653.5,0.00012899,2]
[339163501,1727271070090,-207.68,0.00012899,2]
[339163502,1727271070099,-653.5,0.00012899,2]
[339163503,1727271070109,-653.5,0.00012899,2]
[339163504,1727271070118,-653.5,0.00012899,2]
[339163505,1727271070127,-653.5,0.00012899,2]
[339163506,1727271070136,-500.0,0.00012899,2]
[339163507,1727271070149,-653.5,0.00012899,2]
[339163508,1727271070158,-500.67929135,0.00012899,2]
[339163509,1727271070167,-653.5,0.00012899,2]
[339163510,1727271070177,-653.5,0.00012899,2]
[339163511,1727271070186,-653.5,0.00012899,2]
[339163512,1727271070196,-653.5,0.00012899,2]
[339163513,1727271070205,-653.5,0.00012899,2]
[339163514,1727271070214,-653.5,0.00012899,2]
[339163515,1727271070224,-653.5,0.00012899,2]
[339163516,1727271070233,-653.52,0.00012899,2]
[339163517,1727271070242,-500.0,0.00012899,2]
[339163518,1727271070251,-500.0,0.00012899,2]
[339163519,1727271070261,-501.44235228,0.00012899,2]
[339163520,1727271070270,-500.0,0.00012899,2]
[339163521,1727271070279,-500.0,0.00012899,2]
[339163522,1727271070288,-500.0,0.00012899,2]
[339163523,1727271070298,-500.0,0.00012899,2]
[339163524,1727271070307,-500.0,0.00012899,2]
[339163525,1727271070316,-185.46,0.00012899,2]
[339163526,1727271070330,-500.0,0.00012899,2]
[339163527,1727271070339,-619.04,0.00012899,2]
[339163528,1727271070348,-500.0,0.00012899,2]
[339163529,1727271070357,-500.0,0.00012899,2]
[339163530,1727271070366,-501.43882336,0.00012899,2]
[339163531,1727271070376,-1074.191583,0.00012899,2]
[339163532,1727271070386,-1074.191583,0.00012899,2]
[339163533,1727271070395,-1074.191583,0.00012899,2]
[339163534,1727271070404,-500.0,0.00012899,2]
[339163535,1727271070414,-500.0,0.00012899,2]
[339163536,1727271070423,-500.0,0.00012899,2]
[339163537,1727271070432,-500.70928893,0.00012899,2]
[339163538,1727271070441,-1074.191583,0.00012899,2]
[339163539,1727271070450,-1074.191583,0.00012899,2]
[339163540,1727271070459,-1074.191583,0.00012899,2]
[339163541,1727271070468,-177.348715,0.00012899,2]
[339163542,1727271070477,-177.348715,0.00012899,2]
[339163543,1727271070486,-500.0,0.00012899,2]
[339163544,1727271070495,-177.348715,0.00012899,2]
[339163545,1727271070504,-500.0,0.00012899,2]
[339163546,1727271070514,-500.0,0.00012899,2]
[339163547,1727271070523,-177.348715,0.00012899,2]
[339163548,1727271070531,-500.0,0.00012899,2]
[339163549,1727271070540,-603.56579027,0.00012899,2]
[339163550,1727271070549,-177.348715,0.00012899,2]
[339163551,1727271070559,-177.348715,0.00012899,2]
[339163552,1727271070568,-177.348715,0.00012899,2]
[339163553,1727271070580,-177.348715,0.00012899,2]
[339163554,1727271070589,-389.27643,0.00012899,2]
[339163555,1727271070599,-389.27643,0.00012899,2]
[339163556,1727271070608,-389.27643,0.00012899,2]
[339163557,1727271070617,-389.27643,0.00012899,2]
[339163558,1727271070626,-389.27643,0.00012899,2]
[339163559,1727271070635,-389.27643,0.00012899,2]
[339163560,1727271070645,-371.012323,0.00012899,2]
[339163561,1727271070654,-371.012323,0.00012899,2]
[339163562,1727271070663,-371.012323,0.00012899,2]
[339163563,1727271070671,-151.0,0.00012899,2]
[339163564,1727271070681,-371.012323,0.00012899,2]
[339163565,1727271070690,-168.982522,0.00012899,2]
[339163566,1727271070699,-371.012323,0.00012899,2]
[339163567,1727271070708,-371.012323,0.00012899,2]
[339163568,1727271070718,-371.012323,0.00012899,2]
[339163569,1727271070727,-371.012323,0.00012899,2]
[339163570,1727271070736,-184.48529,0.00012899,2]
[339163571,1727271070745,-500.0,0.00012899,2]
[339163572,1727271070754,-609.52446941,0.00012899,2]
[339163573,1727271070763,-184.48529,0.00012899,2]
[339163574,1727271070772,-184.48529,0.00012899,2]
[339163575,1727271070782,-500.0,0.00012899,2]
[339163576,1727271070791,-500.0,0.00012899,2]
[339163577,1727271070800,-511.23648074,0.00012899,2]
[339163578,1727271070809,-184.48529,0.00012899,2]
[339163579,1727271070820,-184.48529,0.00012899,2]
[339163580,1727271070830,-184.48529,0.00012899,2]
[339163581,1727271070839,-500.0,0.00012899,2]
[339163582,1727271070848,-503.62369852,0.00012899,2]
[339163583,1727271070857,-500.0,0.00012899,2]
[339163584,1727271070867,-500.0,0.00012899,2]
[339163585,1727271070876,-500.0,0.00012899,2]
[339163586,1727271070885,-500.0,0.00012899,2]
[339163587,1727271070894,-583.55,0.00012899,2]
[339163588,1727271070904,-253137.59296469,0.000129,2]
[339163589,1727271070912,-150.0,0.000129,2]
[339163590,1727271070921,-2085320.09402771,0.000129,2]
[339163591,1727271071223,-30577.686,0.000129,2]
[339163592,1727271071375,-1130.90686752,0.000129,2]
[339163593,1727271071387,-7596.73680442,0.000129,2]
[339163594,1727271071413,-500.0,0.00012876,2]
[339163595,1727271071422,-761.32,0.00012895,2]
[339163596,1727271071431,-9021.22076605,0.000129,2]
[339163597,1727271071448,-500.0,0.00012899,2]
[339163598,1727271071458,-220.68925884,0.000129,2]
[339163599,1727271071469,-1285.24018095,0.000129,2]
[339163600,1727271071482,-2082.2186989,0.000129,2]
[339163601,1727271071493,-3167.29915925,0.000129,2]
[339163602,1727271071506,-533.33255933,0.000129,2]
[339163603,1727271071519,-2207.52666908,0.000129,2]
[339163604,1727271071530,-16547.05381555,0.000129,2]
[339163605,1727271071541,-10336.15054324,0.000129,2]
[339163606,1727271071552,-548.17041609,0.000129,2]
[339163607,1727271071566,-1255.36749282,0.000129,2]
[339163608,1727271071581,-925.30673529,0.000129,2]
[339163609,1727271071599,-456.33706747,0.000129,2]
[339163610,1727271071611,-7259.0,0.000129,2]
[339163611,1727271071622,-12424.74685814,0.000129,2]
[339163612,1727271071843,-313.81440627,0.00012876,2]
[339163613,1727271071852,-761.32,0.00012895,2]
[339163614,1727271071861,-248.59161315,0.00012899,2]
[339163615,1727271071872,-251.40838685,0.00012899,2]
[339163616,1727271071881,-59.29527339,0.000129,2]
[339163617,1727271071893,-4002500.23216643,0.000129,2]
[339163618,1727271071901,-562033.75629307,0.000129,2]
[339163619,1727271071912,-2711.97023703,0.000129,2]
[339163620,1727271071923,-1260.0,0.000129,2]
[339163621,1727271071935,-3593.47834983,0.000129,2]
[339163622,1727271071947,-1746.3324078,0.000129,2]
[339163623,1727271071959,-4170.03465609,0.000129,2]
[339163624,1727271071970,-10400.0,0.000129,2]
[339163625,1727271071981,-10507.95729763,0.000129,2]
[339163626,1727271071997,-503.20822997,0.00012879,2]
[339163627,1727271072006,-87514.88939876,0.000129,2]
[339163628,1727271072016,-1009.71667059,0.000129,2]
[339163629,1727271072027,-398.62975953,0.000129,2]
[339163630,1727271072038,-2946.68335152,0.000129,2]
[339163631,1727271072049,-301.69550382,0.000129,2]
[339163632,1727271072059,-1399.79399091,0.000129,2]
[339163633,1727271072077,-761.32,0.00012896,2]
[339163634,1727271072086,-202552.02793062,0.000129,2]
[339163635,1727271072097,-40548.52504663,0.000129,2]
[339163636,1727271072108,-426309.37608784,0.000129,2]
[339163637,1727271072119,-349.5653384,0.000129,2]
[339163638,1727271072130,-8342.69800403,0.000129,2]
[339163639,1727271072141,-641.30813083,0.000129,2]
[339163640,1727271072155,-20410.21731038,0.000129,2]
[339163641,1727271072263,-800.89537267,0.00012,3]
[339163642,1727271072273,-500.0,0.00012876,2]
[339163643,1727271072283,-500.0,0.00012876,2]
[339163644,1727271072293,-111.77976804,0.00012888,2]
[339163645,1727271072303,-388.22023196,0.00012888,2]
[339163646,1727271072312,-761.32,0.00012896,2]
[339163647,1727271072322,-761.32,0.00012897,2]
[339163648,1727271072331,-761.32,0.00012897,2]
[339163649,1727271072341,-761.32,0.00012897,2]
[339163650,1727271072352,-761.32,0.00012897,2]
[339163651,1727271072361,-761.32,0.00012897,2]
[339163652,1727271072370,-761.32,0.00012897,2]
[339163653,1727271072380,-761.32,0.00012898,2]
[339163654,1727271072389,-761.32,0.00012898,2]
[339163655,1727271072398,-500.0,0.00012899,2]
[339163656,1727271072408,-406.58619204,0.00012899,2]
[339163657,1727271072417,-1267.60188625,0.000129,2]
[339163658,1727271072428,-353.4100011,0.000129,2]
[339163659,1727271072439,-2734.9,0.000129,2]
[339163660,1727271072449,-1589.0206032,0.000129,2]
[339163661,1727271072460,-107861.80791795,0.000129,2]
[339163662,1727271072497,-304228.0252586,0.000129,2]
[339163663,1727271072508,-900.0,0.000129,2]
[339163664,1727271072519,-3898.14041674,0.000129,2]
[339163665,1727271072530,-302.0,0.000129,2]
[339163666,1727271072541,-18575.03979885,0.000129,2]
[339163667,1727271072551,-19282.30996736,0.000129,2]
[339163668,1727271072569,-558.0,0.00012899,2]
[339163669,1727271072578,-194.39590146,0.000129,2]
[339163670,1727271072589,-11876.33293888,0.000129,2]
[339163671,1727271072600,-9521.52102756,0.000129,2]
[339163672,1727271072611,-8819.29105158,0.000129,2]
[339163673,1727271072622,-415.19891996,0.000129,2]
[339163674,1727271072634,-23018.06022655,0.000129,2]
[339163675,1727271072645,-744.5,0.000129,2]
[339163676,1727271072786,-500.0,0.00012876,2]
[339163677,1727271072796,-500.0,0.00012889,2]
[339163678,1727271072805,-500.0,0.00012892,2]
[339163679,1727271072814,-197.88,0.00012893,2]
[339163680,1727271072826,-500.0,0.00012893,2]
[339163681,1727271072835,-500.0,0.00012894,2]
[339163682,1727271072844,-761.32,0.00012898,2]
[339163683,1727271072854,-761.32,0.00012898,2]
[339163684,1727271072864,-761.32,0.00012898,2]
[339163685,1727271072872,-761.32,0.00012898,2]
[339163686,1727271072882,-761.32,0.00012898,2]
[339163687,1727271072891,-761.32,0.00012898,2]
[339163688,1727271072900,-761.34,0.00012898,2]
[339163689,1727271072909,-2003.76717097,0.000129,2]